bitfinex/quotes_SOLUSD_20220129
["timestamp","ask_amount","ask_price","bid_price","bid_amount"]
[1643451901833,39.26266243,96.673,96.613,0.25]
[1643451902232,23.7559,96.678,96.613,0.25]
[1643451903036,23.7559,96.678,96.611,0.25]
[1643451903335,0.25,96.677,96.611,0.25]
[1643451903534,0.25,96.677,96.612,17.22444366]
[1643451903736,0.25,96.683,96.612,19.90444366]
[1643451903941,0.25,96.683,96.622,6.0]
[1643451904136,23.7212,96.713,96.623,6.25]
[1643451904339,51.745,96.74,96.63,15.518]
[1643451904340,15.08,96.74,96.63,15.518]
[1643451904538,15.7418,96.748,96.64,21.08]
[1643451904936,24.8677,96.763,96.641,103.25]
[1643451905160,36.84792992,96.762,96.651,6.0]
[1643451905365,36.84792992,96.762,96.66,15.08]
[1643451905665,36.84792992,96.762,96.68,188.55]
[1643451905864,162.31988411,96.808,96.691,61.71]
[1643451906064,127.88,96.86,96.702,164.71]
[1643451906265,112.8,96.86,96.711,61.71]
[1643451906469,112.8,96.86,96.703,0.25]
[1643451906470,112.8,96.86,96.731,61.71]
[1643451906665,112.8,96.86,96.76,15.496]
[1643451906865,45.9751108,96.859,96.77,15.08]
[1643451907067,45.9751108,96.859,96.77,21.08]
[1643451907267,45.9751108,96.859,96.771,0.25]
[1643451907466,45.9751108,96.859,96.771,3.20669142]
[1643451907667,45.9751108,96.859,96.771,9.20669142]
[1643451907865,45.9751108,96.859,96.78,15.494]
[1643451908069,45.9751108,96.859,96.79,21.08]
[1643451908270,45.9751108,96.859,96.791,103.25]
[1643451908472,15.08,96.95,96.791,9.20669142]
[1643451908671,73.3917,96.956,96.792,12.09572629]
[1643451908870,73.3917,96.956,96.8,21.488]
[1643451909071,2.95669142,96.955,96.81,21.08]
[1643451909270,2.95669142,96.955,96.811,164.96]
[1643451909574,46.48622788,96.954,96.82,188.55]
[1643451909770,46.48622788,96.954,96.83,15.08]
[1643451909970,46.48622788,96.954,96.84,15.485]
[1643451910174,46.48622788,96.954,96.85,15.08]
[1643451910571,2.95669142,96.953,96.86,6.0]
[1643451910772,46.48622788,96.954,96.86,6.0]
[1643451910972,6.0,96.944,96.86,6.0]
[1643451911573,46.48622788,96.954,96.86,6.0]
[1643451911772,2.95669142,96.943,96.86,6.0]
[1643451911975,2.95669142,96.943,96.84,15.08]
[1643451912174,2.95669142,96.943,96.82,15.08]
[1643451912375,15.08,96.94,96.82,15.08]
[1643451912575,34.06804887,96.939,96.82,15.08]
[1643451912774,15.491,96.92,96.82,15.08]
[1643451912975,6.0,96.929,96.83,6.0]
[1643451913175,45.68770352,96.909,96.84,15.08]
[1643451913575,45.68770352,96.909,96.85,6.0]
[1643451914278,45.68770352,96.909,96.84,15.08]
[1643451914874,45.68770352,96.909,96.85,6.0]
[1643451915077,45.68770352,96.909,96.84,15.08]
[1643451915876,6.0,96.899,96.82,2.95669142]
[1643451916078,6.0,96.899,96.83,36.566]
[1643451916277,0.25,96.898,96.831,0.25]
[1643451917005,0.25,96.898,96.832,2.95669142]
[1643451917405,0.25,96.898,96.842,6.0]
[1643451917606,0.25,96.908,96.842,6.0]
[1643451917808,0.25,96.908,96.843,0.25]
[1643451918207,45.68770352,96.909,96.843,0.25]
[1643451918208,45.68770352,96.909,96.843,3.20669142]
[1643451918408,45.68770352,96.909,96.85,6.0]
[1643451918608,45.68770352,96.909,96.853,6.0]
[1643451918819,45.68770352,96.909,96.854,0.25]
[1643451919411,45.68770352,96.909,96.86,6.0]
[1643451919815,45.68770352,96.909,96.861,0.25]
[1643451920913,45.68770352,96.909,96.856,0.25]
[1643451921213,45.68770352,96.909,96.855,2.95669142]
[1643451921413,0.25,96.908,96.85,30.563]
[1643451921614,6.0,96.899,96.85,15.08]
[1643451921813,0.25,96.898,96.85,15.08]
[1643451922114,0.25,96.898,96.83,15.486]
[1643451922419,0.25,96.898,96.83,30.566]
[1643451922915,0.25,96.898,96.84,6.0]
[1643451923914,0.25,96.898,96.83,30.566]
[1643451925124,0.25,96.898,96.83,15.08]
[1643451926819,0.25,96.898,96.81,15.08]
[1643451927018,112.8,96.897,96.81,15.08]
[1643451927219,112.8,96.897,96.811,0.25]
[1643451927420,45.27353989,96.886,96.811,0.25]
[1643451927819,0.25,96.885,96.811,0.25]
[1643451928019,6.0,96.876,96.82,6.0]
[1643451928519,0.25,96.875,96.811,0.25]
[1643451928717,0.25,96.875,96.81,6.0]
[1643451928920,0.25,96.875,96.812,2.95669142]
[1643451929119,0.25,96.875,96.822,6.0]
[1643451929620,45.27353989,96.886,96.82,6.0]
[1643451929621,0.25,96.885,96.82,6.0]
[1643451929820,0.25,96.885,96.821,0.25]
[1643451930030,0.25,96.885,96.811,0.25]
[1643451931222,0.25,96.885,96.811,106.20669142]
[1643451931421,0.25,96.885,96.82,6.0]
[1643451931624,0.25,96.885,96.821,109.0]
[1643451931825,0.25,96.885,96.821,6.0]
[1643451932026,0.25,96.885,96.811,106.20669142]
[1643451933222,45.27353989,96.886,96.811,106.20669142]
[1643451933422,45.27353989,96.886,96.821,109.0]
[1643451933823,45.27353989,96.886,96.822,3.20669142]
[1643451934225,45.27353989,96.886,96.823,2.95669142]
[1643451934423,0.25,96.885,96.823,2.95669142]
[1643451934625,0.25,96.885,96.82,15.08]
[1643451935025,45.27353989,96.886,96.82,15.08]
[1643451935225,45.27353989,96.886,96.821,105.95669142]
[1643451935626,45.27353989,96.886,96.822,2.95669142]
[1643451935829,45.27353989,96.886,96.823,0.25]
[1643451936027,45.27353989,96.886,96.832,6.0]
[1643451936428,45.27353989,96.886,96.833,0.25]
[1643451936627,45.27353989,96.886,96.84,6.0]
[1643451936928,45.27353989,96.886,96.841,0.25]
[1643451937131,45.27353989,96.886,96.834,2.95669142]
[1643451937532,0.25,96.885,96.83,15.08]
[1643451938530,0.25,96.885,96.831,0.25]
[1643451938733,0.25,96.885,96.84,6.0]
[1643451939033,0.25,96.885,96.841,6.0]
[1643451939431,0.25,96.885,96.842,6.0]
[1643451939932,0.25,96.885,96.83,15.08]
[1643451940834,0.25,96.885,96.84,6.0]
[1643451941231,45.27353989,96.886,96.841,6.25]
[1643451942860,0.25,96.885,96.841,6.25]
[1643451943260,0.25,96.885,96.841,0.25]
[1643451943857,0.25,96.885,96.831,0.25]
[1643451944059,44.52353989,96.886,96.831,0.25]
[1643451945360,0.25,96.885,96.831,0.25]
[1643451945761,0.25,96.885,96.84,6.0]
[1643451946159,44.52353989,96.886,96.841,3.20669142]
[1643451946359,44.52353989,96.886,96.841,9.20669142]
[1643451946560,44.52353989,96.886,96.851,6.0]
[1643451946763,44.52353989,96.886,96.852,0.25]
[1643451947060,44.52353989,96.886,96.852,6.25]
[1643451947260,44.52353989,96.886,96.852,0.25]
[1643451947864,0.25,96.885,96.852,0.25]
[1643451948061,0.25,96.885,96.831,0.25]
[1643451948462,0.25,96.885,96.84,6.0]
[1643451948661,44.52353989,96.886,96.84,6.0]
[1643451948861,0.25,96.885,96.841,6.25]
[1643451949065,0.25,96.885,96.851,6.0]
[1643451949262,0.25,96.885,96.852,0.25]
[1643451949664,44.52353989,96.886,96.852,0.25]
[1643451950464,1.40957759,96.911,96.852,6.0]
[1643451950765,1.40957759,96.917,96.853,0.25]
[1643451950962,6.0,96.901,96.853,0.25]
[1643451951165,6.0,96.907,96.853,0.25]
[1643451951363,6.0,96.905,96.853,0.25]
[1643451951564,40.22030138,96.904,96.853,103.25]
[1643451954365,40.22030138,96.904,96.853,103.0]
[1643451954565,0.25,96.903,96.853,103.0]
[1643451954965,0.25,96.903,96.85,15.483]
[1643451955168,0.25,96.903,96.84,6.0]
[1643451955965,6.0,96.901,96.84,6.0]
[1643451956366,6.0,96.894,96.84,6.0]
[1643451956767,0.25,96.893,96.841,0.25]
[1643451958167,6.0,96.894,96.841,0.25]
[1643451958769,0.25,96.893,96.841,0.25]
[1643451960976,0.25,96.893,96.841,103.25]
[1643451961175,0.25,96.893,96.841,0.25]
[1643451961377,0.25,96.893,96.851,6.0]
[1643451961576,0.25,96.893,96.841,0.25]
[1643451963779,6.0,96.894,96.841,0.25]
[1643451964777,34.22030138,96.904,96.841,0.25]
[1643451964980,34.22030138,96.904,96.841,103.25]
[1643451965382,34.22030138,96.904,96.851,6.0]
[1643451965879,34.22030138,96.904,96.852,0.25]
[1643451966679,34.22030138,96.904,96.852,12.48]
[1643451967681,34.22030138,96.904,96.862,6.0]
[1643451968081,34.22030138,96.904,96.863,0.25]
[1643451969893,1.40957759,96.919,96.863,0.25]
[1643451970293,0.25,96.918,96.863,0.25]
[1643451970494,0.25,96.918,96.87,6.0]
[1643451970691,0.25,96.918,96.863,0.25]
[1643451970894,0.25,96.918,96.861,0.25]
[1643451971095,0.25,96.918,96.87,6.0]
[1643451971296,0.25,96.924,96.871,0.25]
[1643451974994,0.25,96.924,96.861,0.25]
[1643451975793,0.25,96.924,96.86,15.08]
[1643451976195,1.65957759,96.924,96.86,15.08]
[1643451976416,1.40957759,96.923,96.86,15.08]
[1643451976819,0.25,96.922,96.86,15.08]
[1643451977015,1.65957759,96.922,96.86,15.08]
[1643451977214,1.40957759,96.921,96.861,0.25]
[1643451977713,0.25,96.92,96.861,0.25]
[1643451978516,0.25,96.92,96.86,15.08]
[1643451978718,1.40957759,96.917,96.86,15.08]
[1643451978924,1.40957759,96.916,96.86,15.08]
[1643451979118,0.25,96.916,96.86,15.08]
[1643451979319,0.25,96.919,96.86,15.08]
[1643451980721,1.40957759,96.92,96.84,15.484]
[1643451980921,1.40957759,96.921,96.861,0.25]
[1643451981324,1.40957759,96.923,96.861,0.25]
[1643451982123,0.25,96.922,96.861,0.25]
[1643451982822,1.65957759,96.922,96.86,15.08]
[1643451983024,0.25,96.922,96.86,15.08]
[1643451983625,1.40957759,96.922,96.86,15.08]
[1643451983825,0.25,96.921,96.86,15.08]
[1643451984029,0.25,96.921,96.861,0.25]
[1643451984525,0.25,96.921,96.86,15.08]
[1643451984727,1.65957759,96.921,96.86,15.08]
[1643451984928,1.40957759,96.92,96.861,0.25]
[1643451985129,0.25,96.921,96.861,0.25]
[1643451986328,1.65957759,96.922,96.861,0.25]
[1643451986730,1.40957759,96.92,96.861,0.25]
[1643451987134,0.25,96.919,96.861,0.25]
[1643451987333,1.65957759,96.919,96.861,0.25]
[1643451987732,1.40957759,96.918,96.861,103.25]
[1643451987933,0.25,96.919,96.87,6.0]
[1643451988134,24.6909,96.924,96.871,6.0]
[1643451988334,24.6909,96.924,96.871,6.25]
[1643451989437,0.25,96.923,96.871,6.25]
[1643451989638,0.25,96.923,96.871,0.25]
[1643451990138,0.25,96.923,96.88,6.0]
[1643451990336,0.25,96.923,96.881,0.25]
[1643451993740,0.25,96.923,96.88,6.0]
[1643451994141,0.25,96.923,96.881,0.25]
[1643451994942,42.40007522,96.925,96.881,0.25]
[1643451995340,0.25,96.924,96.881,0.25]
[1643451995941,0.25,96.924,96.871,0.25]
[1643451998043,42.40007522,96.925,96.871,0.25]
[1643451998246,1.40957759,96.932,96.881,61.71]
[1643451998445,1.40957759,96.969,96.891,61.71]
[1643451998644,1.40957759,96.98,96.901,103.0]
[1643451998844,1.40957759,96.996,96.911,103.0]
[1643451999047,0.41402336,96.997,96.93,15.47]
[1643451999251,0.41402336,96.997,96.941,61.71]
[1643451999452,0.41402336,96.997,96.942,103.0]
[1643451999648,0.41402336,96.997,96.952,103.0]
[1643451999849,0.41402336,96.997,96.961,103.0]
[1643452000050,0.41402336,96.997,96.971,6.0]
[1643452000251,0.41402336,96.997,96.98,15.08]
[1643452000652,0.41402336,96.997,96.981,0.25]
[1643452000850,0.41402336,96.997,96.981,3.20669142]
[1643452001150,0.41402336,96.997,96.991,6.0]
[1643452001351,0.41402336,96.997,96.992,0.25]
[1643452004176,0.41402336,96.997,96.991,0.25]
[1643452007877,0.41402336,96.997,96.99,15.08]
[1643452009276,0.41402336,96.997,96.991,0.25]
[1643452009478,37.4173717,97.047,96.99,14.08]
[1643452009677,0.04090047,97.083,96.991,103.0]
[1643452009880,0.04090047,97.083,97.0,6.0]
[1643452010078,0.04090047,97.083,96.991,103.0]
[1643452010079,0.04090047,97.083,97.01,15.08]
[1643452010279,0.04090047,97.083,97.02,15.08]
[1643452010980,0.04090047,97.083,97.021,0.25]
[1643452011380,0.04090047,97.083,97.03,6.0]
[1643452011579,0.04090047,97.083,97.04,15.08]
[1643452011785,39.94594199,97.112,97.041,0.25]
[1643452012078,0.52901296,97.113,97.041,0.25]
[1643452012079,0.52901296,97.113,97.06,15.45]
[1643452012279,0.52901296,97.113,97.07,15.08]
[1643452012481,0.52901296,97.113,97.07,21.08]
[1643452012683,0.52901296,97.113,97.071,0.25]
[1643452012880,41.91977636,97.112,97.071,0.25]
[1643452013382,0.52901296,97.113,97.071,0.25]
[1643452014481,0.52901296,97.113,97.08,15.446]
[1643452014682,0.52901296,97.113,97.09,15.08]
[1643452014883,0.52901296,97.113,97.1,15.08]
[1643452015086,0.52901296,97.113,97.11,6.0]
[1643452015282,0.52901296,97.113,97.111,0.25]
[1643452015481,0.52901296,97.113,97.11,6.0]
[1643452015884,0.52901296,97.113,97.111,0.25]
[1643452017688,0.52901296,97.113,97.11,6.0]
[1643452017889,0.52901296,97.113,97.072,39.17645488]
[1643452018089,0.52901296,97.113,97.06,51.486]
[1643452018090,0.52901296,97.113,97.081,0.25]
[1643452018291,0.52901296,97.113,97.09,15.08]
[1643452018491,0.52901296,97.113,97.1,6.0]
[1643452018690,0.52901296,97.113,97.1,21.08]
[1643452018890,0.52901296,97.113,97.101,0.25]
[1643452023297,0.52901296,97.113,97.1,30.523]
[1643452023497,0.52901296,97.113,97.1,15.08]
[1643452024798,0.52901296,97.113,97.101,0.25]
[1643452025000,0.52901296,97.113,97.1,15.08]
[1643452027304,0.52901296,97.113,97.101,0.25]
[1643452035634,0.52901296,97.113,97.1,15.08]
[1643452036434,0.52901296,97.113,97.101,103.0]
[1643452036639,0.52901296,97.113,97.111,6.0]
[1643452036836,0.52901296,97.113,97.112,0.25]
[1643452037437,0.52901296,97.113,97.1,15.08]
[1643452037841,0.52901296,97.113,97.101,0.25]
[1643452038041,0.52901296,97.113,97.1,15.08]
[1643452038239,0.52901296,97.113,97.101,0.25]
[1643452038443,0.52901296,97.113,97.1,15.08]
[1643452038840,0.52901296,97.113,97.101,0.25]
[1643452039539,0.52901296,97.113,97.1,15.08]
[1643452041142,0.52901296,97.113,97.101,0.25]
[1643452043346,0.52901296,97.113,97.11,6.0]
[1643452043746,0.52901296,97.113,97.111,0.25]
[1643452044749,0.52901296,97.113,97.1,15.08]
[1643452045150,0.52901296,97.113,97.101,0.25]
[1643452045551,0.52901296,97.113,97.1,15.08]
[1643452045753,0.52901296,97.113,97.101,0.25]
[1643452045951,0.52901296,97.113,97.1,15.08]
[1643452046161,0.52901296,97.113,97.101,0.25]
[1643452046352,0.52901296,97.113,97.1,15.08]
[1643452047452,0.52901296,97.113,97.101,0.25]
[1643452047853,0.52901296,97.113,97.11,6.0]
[1643452048055,0.52901296,97.113,97.101,0.25]
[1643452048258,0.52901296,97.113,97.11,6.0]
[1643452048455,0.52901296,97.113,97.101,0.25]
[1643452048655,0.52901296,97.113,97.11,6.0]
[1643452048857,0.52901296,97.113,97.111,0.25]
[1643452049055,0.52901296,97.113,97.11,6.0]
[1643452049255,0.52901296,97.113,97.111,0.25]
[1643452050057,1.40957759,97.147,97.111,0.25]
[1643452050257,1.40957759,97.172,97.12,15.08]
[1643452050460,1.40957759,97.177,97.121,103.0]
[1643452050658,1.40957759,97.184,97.13,6.0]
[1643452050863,1.40957759,97.186,97.14,15.08]
[1643452051058,1.40957759,97.187,97.14,15.08]
[1643452051261,1.40957759,97.187,97.141,0.25]
[1643452051461,1.40957759,97.189,97.141,0.25]
[1643452051860,1.65957759,97.188,97.141,0.25]
[1643452052159,1.40957759,97.194,97.141,0.25]
[1643452052362,0.25,97.187,97.141,0.25]
[1643452052961,0.26067392,97.193,97.141,0.25]
[1643452054063,0.26067392,97.193,97.14,15.08]
[1643452055289,0.26067392,97.193,97.141,0.25]
[1643452056287,6.0,97.19,97.141,0.25]
[1643452056494,0.26067392,97.193,97.141,0.25]
[1643452056689,0.25,97.189,97.141,0.25]
[1643452056889,0.26067392,97.193,97.141,0.25]
[1643452059696,0.0037352,97.149,97.142,2.95669142]
[1643452060095,0.0037352,97.149,97.143,0.25]
[1643452060296,0.0037352,97.149,97.141,103.25]
[1643452060700,0.0037352,97.149,97.141,0.25]
[1643452062101,0.0037352,97.149,97.14,15.08]
[1643452062502,0.0037352,97.149,97.12,15.08]
[1643452065308,0.0037352,97.149,97.121,0.25]
[1643452067209,0.0037352,97.149,97.122,2.95669142]
[1643452067610,0.0037352,97.149,97.123,0.25]
[1643452068008,0.0037352,97.149,97.124,2.95669142]
[1643452068509,0.0037352,97.149,97.125,0.25]
[1643452068911,0.0037352,97.149,97.126,2.95669142]
[1643452069108,0.0037352,97.149,97.13,21.08]
[1643452069309,0.0037352,97.149,97.131,0.25]
[1643452070511,0.0037352,97.149,97.137,103.0]
[1643452070710,0.0037352,97.149,97.14,21.08]
[1643452071011,0.0037352,97.149,97.14,15.08]
[1643452072612,0.0037352,97.149,97.141,0.25]
[1643452073012,0.0037352,97.149,97.14,15.08]
[1643452073209,0.0037352,97.149,97.141,0.25]
[1643452073610,0.0037352,97.149,97.14,15.08]
[1643452074614,0.0037352,97.149,97.141,0.25]
[1643452075513,0.0037352,97.149,97.142,2.95669142]
[1643452075913,0.0037352,97.149,97.143,0.25]
[1643452076312,0.0037352,97.149,97.144,2.95669142]
[1643452076813,0.0037352,97.149,97.145,0.25]
[1643452077214,0.0037352,97.149,97.146,2.95669142]
[1643452077614,0.0037352,97.149,97.147,0.25]
[1643452078814,0.0037352,97.149,97.141,0.25]
[1643452079017,0.0037352,97.149,97.148,2.95669142]
[1643452079415,0.0037352,97.149,97.148,0.25]
[1643452080714,0.0037352,97.149,97.14,15.08]
[1643452080715,0.0037352,97.149,97.141,0.25]
[1643452081816,0.0037352,97.149,97.142,2.95669142]
[1643452082215,0.0037352,97.149,97.143,0.25]
[1643452082416,0.0037352,97.149,97.142,2.95669142]
[1643452082816,0.0037352,97.149,97.144,2.95669142]
[1643452083522,0.0037352,97.149,97.145,0.25]
[1643452084520,0.0037352,97.149,97.141,0.25]
[1643452105871,0.0037352,97.149,97.14,15.08]
[1643452109410,0.0037352,97.149,97.106,2.95669142]
[1643452109608,0.0037352,97.149,97.1,1.40936117]
[1643452109809,0.0037352,97.149,97.091,1.40936117]
[1643452110013,0.0037352,97.149,97.087,1.40936117]
[1643452110212,0.0037352,97.149,97.088,1.40936117]
[1643452110411,0.0037352,97.149,97.086,1.40936117]
[1643452110710,0.0037352,97.149,97.08,15.08]
[1643452112114,0.0037352,97.149,97.081,0.25]
[1643452112816,0.0037352,97.149,97.08,15.08]
[1643452114017,0.0037352,97.149,97.081,0.25]
[1643452114216,0.0037352,97.149,97.067,1.40936117]
[1643452114418,2.95669142,97.148,97.056,1.40936117]
[1643452114622,2.95669142,97.148,97.028,2.85044863]
[1643452114623,103.0,97.137,97.049,1.40936117]
[1643452114817,48.6641,97.136,97.045,1.40936117]
[1643452115019,6.0,97.126,97.045,1.40936117]
[1643452115217,6.0,97.126,97.042,1.40936117]
[1643452115417,0.25,97.125,97.039,1.40936117]
[1643452115721,9.20669142,97.125,97.036,1.40936117]
[1643452115918,24.0125,97.124,97.036,1.40936117]
[1643452116118,43.55242037,97.113,97.035,1.40936117]
[1643452116318,25.2038,97.112,97.034,1.40936117]
[1643452116519,6.0,97.102,97.034,1.40936117]
[1643452116717,6.0,97.102,97.03,15.08]
[1643452116919,0.25,97.101,97.03,15.08]
[1643452117117,0.25,97.101,97.031,0.25]
[1643452117520,6.0,97.092,97.031,0.25]
[1643452117718,37.18266726,97.092,97.031,1.65936117]
[1643452117918,37.18266726,97.092,97.033,1.40936117]
[1643452118117,37.18266726,97.092,97.031,0.25]
[1643452119119,37.18266726,97.092,97.032,1.40936117]
[1643452119322,37.18266726,97.092,97.033,1.65936117]
[1643452119524,15.454,97.15,97.043,6.0]
[1643452119721,23.3039,97.169,97.051,61.71]
[1643452119921,23.3039,97.169,97.055,1.40936117]
[1643452120122,23.3039,97.169,97.07,15.08]
[1643452120320,23.2097,97.186,97.071,0.25]
[1643452120520,35.46516398,97.168,97.08,6.0]
[1643452120722,35.46516398,97.168,97.09,15.08]
[1643452120921,23.2097,97.186,97.09,30.525]
[1643452121121,23.2097,97.186,97.1,6.0]
[1643452121320,23.2097,97.186,97.101,0.25]
[1643452121522,23.2097,97.186,97.101,6.25]
[1643452121920,38.67000367,97.185,97.11,6.0]
[1643452122121,38.92000367,97.185,97.101,0.25]
[1643452122321,32.79288791,97.169,97.1,15.08]
[1643452122724,0.25,97.168,97.1,15.08]
[1643452124723,0.25,97.168,97.101,0.25]
[1643452125124,0.25,97.168,97.1,15.08]
[1643452126927,0.25,97.168,97.101,0.25]
[1643452127524,0.25,97.168,97.1,15.08]
[1643452128825,32.79288791,97.169,97.1,15.08]
[1643452130228,0.25,97.168,97.1,15.08]
[1643452138933,32.79288791,97.169,97.101,0.25]
[1643452139133,0.25,97.168,97.101,0.25]
[1643452145961,0.25,97.168,97.1,15.08]
[1643452146561,0.25,97.168,97.101,2.95669142]
[1643452146760,0.25,97.168,97.102,1.40936117]
[1643452147162,1.40957759,97.195,97.103,2.95669142]
[1643452147361,0.25,97.194,97.112,103.0]
[1643452147661,6.25,97.194,97.122,6.0]
[1643452147860,6.25,97.194,97.123,0.25]
[1643452148061,39.91630465,97.193,97.131,6.0]
[1643452148262,0.25,97.192,97.132,0.25]
[1643452148864,39.91630465,97.193,97.132,0.25]
[1643452149465,39.91630465,97.193,97.122,0.25]
[1643452150069,39.91630465,97.193,97.131,6.0]
[1643452150268,39.91630465,97.193,97.132,0.25]
[1643452151074,0.26067392,97.193,97.132,0.25]
[1643452151273,0.26067392,97.193,97.132,103.25]
[1643452151472,0.26067392,97.193,97.133,2.95669142]
[1643452151674,0.26067392,97.193,97.142,6.0]
[1643452151875,0.26067392,97.193,97.143,6.25]
[1643452153679,0.26067392,97.193,97.143,0.25]
[1643452153878,0.26067392,97.193,97.141,0.25]
[1643452158785,0.26067392,97.193,97.14,15.08]
[1643452159082,0.26067392,97.193,97.12,15.08]
[1643452160085,0.26067392,97.193,97.121,0.25]
[1643452161008,0.26067392,97.193,97.112,1.40936117]
[1643452161209,0.26067392,97.193,97.102,1.40936117]
[1643452161414,0.26067392,97.193,97.102,0.25]
[1643452163013,15.446,97.19,97.101,0.25]
[1643452163210,46.22183653,97.189,97.101,0.25]
[1643452163411,6.0,97.18,97.101,0.25]
[1643452163610,30.7273,97.179,97.101,0.25]
[1643452164012,0.25,97.178,97.101,0.25]
[1643452168121,0.25,97.178,97.103,1.40936117]
[1643452168320,0.25,97.178,97.104,0.25]
[1643452169021,0.25,97.178,97.103,1.40936117]
[1643452169223,0.25,97.178,97.095,1.40936117]
[1643452169423,6.0,97.171,97.092,1.40936117]
[1643452169622,6.0,97.168,97.095,1.40936117]
[1643452169822,0.25,97.167,97.094,1.40936117]
[1643452170021,0.25,97.167,97.07,15.08]
[1643452170022,6.0,97.16,97.093,1.40936117]
[1643452170421,6.0,97.157,97.094,1.65936117]
[1643452170823,0.25,97.156,97.094,1.65936117]
[1643452171023,0.25,97.156,97.094,1.40936117]
[1643452171824,0.25,97.156,97.092,1.40936117]
[1643452172023,0.25,97.156,97.091,1.40936117]
[1643452174729,24.3176,97.167,97.091,1.40936117]
[1643452174927,24.3176,97.167,97.08,17.24204813]
[1643452174928,24.3176,97.167,97.1,1.40936117]
[1643452175328,38.64506378,97.17,97.11,6.0]
[1643452175531,1.40957759,97.208,97.11,6.0]
[1643452175726,46.7241,97.216,97.11,6.0]
[1643452175727,23.089,97.188,97.111,0.25]
[1643452175928,23.089,97.188,97.111,6.25]
[1643452176128,23.089,97.188,97.121,6.0]
[1643452176529,46.70028172,97.187,97.118,6.0]
[1643452176728,6.0,97.177,97.108,1.40936117]
[1643452176932,6.0,97.177,97.08,19.46326648]
[1643452176933,22.9393,97.176,97.105,1.40936117]
[1643452177129,22.9393,97.176,97.104,1.40936117]
[1643452177329,22.9393,97.176,97.105,1.40936117]
[1643452177928,1.40957759,97.208,97.12,15.08]
[1643452178228,187.55,97.293,97.106,4.61605259]
[1643452178229,1.40957759,97.228,97.13,21.08]
[1643452178429,46.8643,97.225,97.14,15.08]
[1643452178830,41.95088601,97.224,97.141,0.25]
[1643452179229,6.0,97.214,97.14,15.08]
[1643452179631,6.0,97.213,97.14,15.08]
[1643452179830,29.5481,97.213,97.14,15.08]
[1643452180030,29.5481,97.213,97.121,1.40936117]
[1643452180229,29.5481,97.213,97.132,0.25]
[1643452180633,29.5481,97.213,97.134,6.0]
[1643452180829,29.5481,97.213,97.135,0.25]
[1643452181031,29.5481,97.213,97.135,6.25]
[1643452181231,29.5481,97.213,97.122,1.40936117]
[1643452181429,0.25,97.212,97.122,1.40936117]
[1643452181630,0.25,97.212,97.123,0.25]
[1643452183436,37.86509423,97.209,97.123,0.25]
[1643452183635,6.0,97.199,97.123,0.25]
[1643452183938,0.25,97.198,97.123,0.25]
[1643452184541,23.3868,97.198,97.123,0.25]
[1643452184937,6.0,97.188,97.123,0.25]
[1643452185138,45.08624121,97.187,97.123,0.25]
[1643452185340,45.08624121,97.187,97.123,1.65936117]
[1643452185540,45.08624121,97.187,97.126,1.40936117]